bitfinex/quotes_SOLUSD_20241225
["timestamp","ask_amount","ask_price","bid_price","bid_amount"]
[1735157912806,6.2978,199.28,199.24,9.6437649]
[1735157913323,1.6381,199.29,199.25,9.6437649]
[1735157913994,1.6381,199.29,199.26,9.6437649]
[1735157914389,15.9684649,199.33,199.26,9.6437649]
[1735157915325,9.6437649,199.31,199.24,9.6437649]
[1735157916706,9.6437649,199.31,199.23,9.6437649]
[1735157917258,9.6437649,199.31,199.24,9.6437649]
[1735157918354,9.6437649,199.31,199.23,9.6437649]
[1735157918558,9.6437649,199.3,199.23,9.6437649]
[1735157920166,22.1871649,199.31,199.23,9.6437649]
[1735157920634,9.6437649,199.3,199.23,9.6437649]
[1735157920836,22.1871649,199.31,199.23,9.6437649]
[1735157922358,9.6437649,199.3,199.23,9.6437649]
[1735157923056,9.6437649,199.3,199.22,9.6437649]
[1735157925663,9.6437649,199.29,199.22,9.6437649]
[1735157927759,9.6437649,199.3,199.22,9.6437649]
[1735157929255,9.6437649,199.27,199.2,9.6437649]
[1735157929457,11.3928649,199.27,199.2,9.6437649]
[1735157929665,9.6437649,199.26,199.16,1.7602]
[1735157929838,9.6437649,199.26,199.18,9.6437649]
[1735157930966,9.6437649,199.26,199.14,0.75291002]
[1735157931264,9.6437649,199.26,199.18,9.6437649]
[1735157934959,9.6437649,199.26,199.19,9.6437649]
[1735157937166,1.7491,199.27,199.21,9.6437649]
[1735157940266,11.3928649,199.27,199.21,9.6437649]
[1735157940651,11.3928649,199.27,199.2,9.6437649]
[1735157940973,11.3928649,199.27,199.21,9.6437649]
[1735157942289,1.7491,199.27,199.21,9.6437649]
[1735157942450,1.7491,199.27,199.23,9.6437649]
[1735157945980,1.7491,199.27,199.22,9.6437649]
[1735157949684,11.3928649,199.27,199.19,9.6437649]
[1735157949888,9.6437649,199.26,199.19,9.6437649]
[1735157950183,11.3928649,199.27,199.19,9.6437649]
[1735157950387,11.3928649,199.27,199.2,9.6437649]
[1735157950589,1.7491,199.27,199.21,9.6437649]
[1735157953062,9.6437649,199.26,199.19,9.6437649]
[1735157956105,15.9142649,199.26,199.19,9.6437649]
[1735157957584,6.2705,199.26,199.2,9.6437649]
[1735157957972,6.2705,199.26,199.23,9.6437649]
[1735157958265,1.7491,199.27,199.23,9.6437649]
[1735157959983,1.7491,199.27,199.22,9.6437649]
[1735157961595,1.7491,199.27,199.21,9.6437649]
[1735157962701,9.6437649,199.26,199.18,9.6437649]
[1735157963669,9.6437649,199.26,199.19,9.6437649]
[1735157964284,9.6437649,199.26,199.16,20.0]
[1735157964483,15.9142649,199.26,199.19,9.6437649]
[1735157965505,6.2705,199.26,199.2,9.6437649]
[1735157968977,6.2705,199.26,199.21,9.6437649]
[1735157969179,6.2705,199.26,199.22,9.6437649]
[1735157969386,1.7491,199.27,199.24,9.6437649]
[1735157977615,1.7491,199.27,199.23,9.6437649]
[1735157979990,1.7491,199.27,199.18,0.75280424]
[1735157980195,11.3928649,199.27,199.19,9.6437649]
[1735157982744,11.3928649,199.27,199.2,9.6437649]
[1735157988566,1.7491,199.27,199.2,8.0937649]
[1735157989164,11.3928649,199.27,199.2,8.0937649]
[1735157991264,12.5464,199.26,199.2,8.0937649]
[1735157994660,6.2305,199.25,199.17,20.0]
[1735157994864,6.2305,199.25,199.19,9.6437649]
[1735157998487,6.2305,199.25,199.2,9.6437649]
[1735158003087,6.2305,199.25,199.19,9.6437649]
[1735158003991,6.2305,199.25,199.2,9.6437649]
[1735158005894,6.2305,199.25,199.15,0.75287273]
[1735158006080,9.6437649,199.23,199.17,9.6437649]
[1735158006388,9.6437649,199.22,199.16,9.6437649]
[1735158006595,33.4206489,199.21,199.15,9.6437649]
[1735158006891,9.6437649,199.2,199.14,9.6437649]
[1735158007104,11.3749649,199.2,199.14,9.6437649]
[1735158009381,11.3749649,199.2,199.08,30.75317363]
[1735158009584,11.3749649,199.2,199.14,9.6437649]
[1735158009894,9.6437649,199.17,199.09,20.0]
[1735158010193,9.6437649,199.16,199.1,9.6437649]
[1735158010392,9.6437649,199.16,199.09,20.0]
[1735158010393,9.6437649,199.16,199.02,83.47790462]
[1735158010704,9.6437649,199.11,199.02,38.83478503]
[1735158010907,1.7312,199.13,199.07,9.6437649]
[1735158011314,11.3749649,199.13,199.07,9.6437649]
[1735158011914,1.7312,199.13,199.07,9.6437649]
[1735158013117,11.3749649,199.13,199.06,9.6437649]
[1735158013508,9.6437649,199.12,199.06,9.6437649]
[1735158013812,9.6437649,199.11,199.01,20.0]
[1735158014003,9.6437649,199.11,199.04,9.6437649]
[1735158014317,9.6437649,199.1,199.03,9.6437649]
[1735158014506,6.1696,199.11,199.0,20.0]
[1735158014507,33.4206489,199.09,199.0,20.0]
[1735158014694,33.4206489,199.09,199.03,9.6437649]
[1735158015918,9.6437649,199.1,199.04,9.6437649]
[1735158017412,15.8133649,199.11,199.04,9.6437649]
[1735158019334,6.1696,199.11,199.05,9.6437649]
[1735158020130,1.7312,199.13,199.09,9.6437649]
[1735158020346,1.7312,199.13,199.1,9.6437649]
[1735158020522,1.7312,199.13,199.09,9.6437649]
[1735158020713,1.7312,199.13,199.08,9.6437649]
[1735158021315,1.7312,199.13,199.09,9.6437649]
[1735158022241,1.7312,199.13,199.11,9.6437649]
[1735158023039,6.1696,199.16,199.11,9.6437649]
[1735158023536,6.1696,199.16,199.05,0.75329097]
[1735158023537,6.1696,199.16,199.1,9.6437649]
[1735158024439,15.8133649,199.16,199.09,9.6437649]
[1735158025324,9.6437649,199.15,199.08,9.6437649]
[1735158026645,9.6437649,199.12,199.01,20.0]
[1735158026940,9.6437649,199.11,199.04,9.6437649]
[1735158027142,9.6437649,199.12,199.01,20.0]
[1735158027317,9.6437649,199.12,199.05,9.6437649]
[1735158027643,9.6437649,199.11,199.04,9.6437649]
[1735158027820,36.330784,199.14,199.05,9.6437649]
[1735158028017,9.6437649,199.12,199.05,9.6437649]
[1735158029145,9.6437649,199.11,199.03,9.6437649]
[1735158029312,9.6437649,199.11,199.04,9.6437649]
[1735158030147,9.6437649,199.12,199.04,9.6437649]
[1735158030741,9.6437649,199.12,199.05,9.6437649]
[1735158030931,9.6437649,199.11,199.04,9.6437649]
[1735158031235,45.9745489,199.14,199.06,9.6437649]
[1735158031418,9.6437649,199.15,199.08,9.6437649]
[1735158031616,15.8133649,199.16,199.08,9.6437649]
[1735158032125,15.8133649,199.16,199.09,9.6437649]
[1735158032325,6.1696,199.16,199.1,9.6437649]
[1735158032519,6.1696,199.16,199.11,9.6437649]
[1735158033434,6.1696,199.16,199.04,30.75336653]
[1735158033435,6.1696,199.16,199.09,9.6437649]
[1735158033640,15.8133649,199.16,199.09,9.6437649]
[1735158034664,15.8133649,199.16,199.07,29.6437649]
[1735158034665,9.6437649,199.15,199.07,29.6437649]
[1735158035049,9.6437649,199.14,199.07,9.6437649]
[1735158036152,9.6437649,199.13,199.06,9.6437649]
[1735158036358,9.6437649,199.12,199.05,9.6437649]
[1735158036658,9.6437649,199.11,199.0,0.75339869]
[1735158036868,9.6437649,199.1,199.03,9.6437649]
[1735158037369,0.12549,199.14,199.05,9.6437649]
[1735158037370,9.6437649,199.13,199.05,9.6437649]
[1735158038775,33.4206489,199.14,199.07,9.6437649]
[1735158039067,9.6437649,199.13,199.06,9.6437649]
[1735158039242,9.6437649,199.13,199.05,9.6437649]
[1735158042745,9.6437649,199.13,199.06,9.6437649]
[1735158042944,9.6437649,199.12,199.05,9.6437649]
[1735158045073,9.6437649,199.13,199.06,9.6437649]
[1735158046785,9.6437649,199.13,199.05,9.6437649]
[1735158047093,11.3798649,199.11,199.04,9.6437649]
[1735158049399,33.4206489,199.1,199.03,9.6437649]
[1735158049588,33.4206489,199.1,199.02,9.6437649]
[1735158055196,9.6437649,199.08,199.01,9.6437649]
[1735158055394,6.0568,199.09,198.93,30.0]
[1735158055395,33.4206489,199.07,198.97,20.0]
[1735158055582,33.4206489,199.07,199.0,9.6437649]
[1735158055772,9.6437649,199.05,198.94,10.32823711]
[1735158055974,33.4206489,199.04,198.97,9.6437649]
[1735158056475,9.6437649,199.03,198.96,9.6437649]
[1735158056678,7.73724547,199.03,198.97,9.6437649]
[1735158057579,9.6437649,199.04,198.97,9.6437649]
[1735158058585,23.776884,199.05,198.99,9.6437649]
[1735158058903,23.776884,199.05,199.0,9.6437649]
[1735158059110,1.7361,199.06,199.0,9.6437649]
[1735158059604,11.3798649,199.06,198.99,9.6437649]
[1735158060720,9.6437649,199.05,198.99,9.6437649]
[1735158061037,9.6437649,199.03,198.94,20.0]
[1735158061207,9.6437649,199.03,198.96,9.6437649]
[1735158061414,9.6437649,199.04,198.97,9.6437649]
[1735158062502,1.7361,199.06,199.01,9.6437649]
[1735158062721,1.7361,199.06,199.0,9.6437649]
[1735158063927,1.7361,199.06,199.01,9.6437649]
[1735158064305,1.7361,199.06,199.0,9.6437649]
[1735158065001,1.7361,199.06,198.99,9.6437649]
[1735158065199,11.3798649,199.06,198.99,9.6437649]
[1735158066395,9.6437649,199.05,198.98,9.6437649]
[1735158067232,11.3798649,199.06,198.99,9.6437649]
[1735158070541,1.7361,199.06,199.0,9.6437649]
[1735158070749,1.7361,199.06,199.01,9.6437649]
[1735158071647,1.7361,199.06,199.0,9.6437649]
[1735158074340,1.7361,199.06,199.01,9.6437649]
[1735158075757,15.7005649,199.09,198.96,30.0]
[1735158075758,6.0568,199.09,199.04,9.6437649]
[1735158076855,6.0568,199.09,198.99,0.75352202]
[1735158076856,6.0568,199.09,199.03,9.6437649]
[1735158077026,6.0568,199.09,199.04,9.6437649]
[1735158079467,6.0568,199.09,199.03,9.6437649]
[1735158081459,6.0568,199.09,199.02,9.6437649]
[1735158084436,6.0568,199.09,199.04,9.6437649]
[1735158084634,9.6437649,199.08,198.97,0.75353068]
[1735158084940,9.6437649,199.06,198.99,9.6437649]
[1735158087847,9.6437649,199.06,198.98,9.6437649]
[1735158089467,12.5577,199.08,198.98,9.6437649]
[1735158089766,9.6437649,199.06,198.98,9.6437649]
[1735158091579,12.5577,199.08,199.0,9.6437649]
[1735158091742,9.6437649,199.07,199.0,9.6437649]
[1735158093866,6.0568,199.09,199.03,9.6437649]
[1735158094373,15.7005649,199.09,199.02,9.6437649]
[1735158096171,6.0568,199.09,199.03,9.6437649]
[1735158098346,6.0568,199.09,199.04,9.6437649]
[1735158099176,11.3001649,199.11,199.04,9.6437649]
[1735158099348,1.6564,199.11,199.06,9.6437649]
[1735158099555,1.6564,199.11,199.05,9.6437649]
[1735158099968,1.6564,199.11,199.06,9.6437649]
[1735158100879,12.5521,199.17,199.1,9.6437649]
[1735158101099,22.1958649,199.17,199.09,9.6437649]
[1735158102369,9.6437649,199.16,199.09,9.6437649]
[1735158103089,9.6437649,199.15,199.08,9.6437649]
[1735158103383,9.6437649,199.11,199.02,20.0]
[1735158103564,9.6437649,199.11,199.04,9.6437649]
[1735158103755,9.6437649,199.12,199.05,9.6437649]
[1735158104281,15.6608649,199.13,199.05,9.6437649]
[1735158107098,9.6437649,199.12,199.04,9.6437649]
[1735158108202,9.6437649,199.09,199.02,9.6437649]
[1735158108550,9.6437649,199.09,199.01,9.6437649]
[1735158110700,9.6437649,199.08,199.02,9.6437649]
[1735158110877,9.6437649,199.08,199.01,9.6437649]
[1735158112384,9.6437649,199.06,198.99,9.6437649]
[1735158112613,9.6437649,199.06,198.98,20.0]
[1735158112614,11.2914649,199.05,198.98,9.6437649]
[1735158113122,9.6437649,199.04,198.98,9.6437649]
[1735158114622,11.2914649,199.05,198.98,9.6437649]
[1735158114922,11.2914649,199.05,198.99,9.6437649]
[1735158116320,1.6477,199.05,198.99,9.6437649]
[1735158117518,1.6477,199.05,199.0,9.6437649]
[1735158118436,1.6477,199.05,199.02,9.6437649]
[1735158118588,1.6477,199.05,198.96,0.7537287]
[1735158118792,1.6477,199.05,199.01,9.6437649]
[1735158119123,1.6477,199.05,199.02,9.6437649]
[1735158119619,1.6829,199.1,199.04,9.6437649]
[1735158119793,1.6829,199.1,199.06,9.6437649]
[1735158120421,1.6829,199.1,199.05,9.6437649]
[1735158120928,1.6829,199.1,199.0,0.75349115]
[1735158120929,1.6829,199.1,199.06,9.6437649]
[1735158123010,1.6829,199.1,199.05,9.6437649]
[1735158126506,1.6829,199.1,199.06,9.6437649]
[1735158127027,14.2363,199.15,199.07,9.6437649]
[1735158127234,14.2363,199.15,199.09,9.6437649]
[1735158127923,1.6829,199.15,199.09,9.6437649]
[1735158128295,1.6829,199.15,199.1,9.6437649]
[1735158128931,1.6829,199.15,199.13,9.6437649]
[1735158129529,1.6829,199.15,199.12,9.6437649]
[1735158129817,9.6437649,199.19,199.12,9.6437649]
[1735158130024,11.3266649,199.2,199.13,9.6437649]
[1735158130198,1.6829,199.2,199.16,9.6437649]
[1735158130402,1.6829,199.2,199.17,9.6437649]
[1735158130603,1.6829,199.2,199.16,9.6437649]
[1735158131916,1.6829,199.2,199.17,9.6437649]
[1735158132123,23.8737649,199.25,199.17,9.6437649]
[1735158132324,9.6437649,199.24,199.17,9.6437649]
[1735158135500,23.8737649,199.25,199.17,9.6437649]
[1735158135921,1.6829,199.25,199.2,9.6437649]
[1735158136224,11.3266649,199.25,199.18,9.6437649]
[1735158136429,9.6437649,199.24,199.17,9.6437649]
[1735158137700,1.6829,199.25,199.18,9.6437649]
[1735158137905,1.6829,199.25,199.19,9.6437649]
[1735158138105,11.3266649,199.25,199.18,9.6437649]
[1735158138832,1.6829,199.25,199.18,9.6437649]
[1735158139129,11.3266649,199.25,199.18,9.6437649]
[1735158140037,9.6437649,199.21,199.14,29.6437649]
[1735158141432,9.6437649,199.19,199.12,9.6437649]
[1735158141629,1.6694,199.18,199.11,9.6437649]
[1735158142936,9.6437649,199.16,199.09,9.6437649]
[1735158145338,9.6437649,199.15,199.08,9.6437649]
[1735158147232,9.6437649,199.16,199.09,9.6437649]
[1735158147418,9.6437649,199.15,199.09,9.6437649]
[1735158147619,9.6437649,199.15,199.08,9.6437649]
[1735158148038,9.6437649,199.15,199.03,2.39297813]
[1735158148337,9.6437649,199.13,199.07,9.6437649]
[1735158148852,9.6437649,199.09,199.01,0.7533654]
[1735158149128,9.6437649,199.08,199.02,9.6437649]
[1735158150240,9.6437649,199.07,198.99,20.0]
[1735158150540,9.6437649,199.06,199.0,9.6437649]
[1735158150715,9.6437649,199.05,198.99,9.6437649]
[1735158151532,9.6437649,199.06,199.0,9.6437649]
[1735158151714,9.6437649,199.06,198.99,9.6437649]
[1735158153729,12.5571,199.09,199.01,9.6437649]
[1735158153924,9.6437649,199.07,199.0,9.6437649]
[1735158156243,1.6837,199.1,199.01,9.6437649]
[1735158156437,9.6437649,199.07,199.0,9.6437649]
[1735158158140,1.6837,199.1,199.01,9.6437649]
[1735158158330,1.6837,199.1,199.04,9.6437649]
[1735158158725,11.3274649,199.1,199.03,9.6437649]
[1735158158916,9.6437649,199.09,199.02,9.6437649]
[1735158159126,9.6437649,199.07,198.97,0.75352034]
[1735158159329,9.6437649,199.07,198.99,9.6437649]
[1735158160042,9.6437649,199.05,198.98,20.0]
[1735158160231,9.6437649,199.05,198.98,29.6437649]
[1735158160639,9.6437649,199.05,198.97,9.6437649]
[1735158160820,12.68259,199.09,198.96,9.6437649]
[1735158161024,9.6437649,199.03,198.96,9.6437649]
[1735158161343,9.6437649,199.04,198.96,9.6437649]
[1735158161546,9.6437649,199.04,198.97,9.6437649]
[1735158162127,9.6437649,199.06,198.99,9.6437649]
[1735158162330,9.6437649,199.08,199.01,9.6437649]
[1735158163651,9.6437649,199.09,199.01,9.6437649]
[1735158164146,11.3274649,199.1,199.03,9.6437649]
[1735158164326,1.6837,199.1,199.04,9.6437649]
[1735158165450,1.6837,199.1,199.05,9.6437649]
[1735158165626,1.6837,199.1,199.04,9.6437649]
[1735158165825,7.7043,199.16,199.08,9.6437649]
[1735158166035,17.3480649,199.16,199.09,9.6437649]
[1735158166841,9.6437649,199.15,199.08,9.6437649]
[1735158170158,9.6437649,199.14,199.07,9.6437649]
[1735158173568,7.7043,199.16,199.05,29.6437649]
[1735158173742,9.6437649,199.14,199.05,29.6437649]
[1735158174061,9.6437649,199.14,199.06,23.776884]
[1735158180951,9.6437649,199.1,199.02,20.0]
[1735158181246,9.6437649,199.1,199.02,29.6437649]
[1735158182076,12.5534,199.15,199.03,0.75345785]
[1735158182375,9.6437649,199.13,199.05,9.6437649]
[1735158184158,12.5534,199.15,199.05,9.6437649]
[1735158184366,9.6437649,199.13,199.05,9.6437649]
[1735158185392,9.6437649,199.13,199.05,23.776884]
[1735158185952,9.6437649,199.13,199.05,33.4206489]
[1735158187079,9.6437649,199.13,199.05,23.776884]
[1735158190578,9.6437649,199.11,199.05,23.776884]
[1735158192580,9.6437649,199.09,199.01,20.0]
[1735158192753,9.6437649,199.09,199.03,20.0]
[1735158197388,1.7131,199.1,199.03,20.0]
[1735158197597,11.3568649,199.1,199.03,20.0]
[1735158198154,1.7131,199.1,199.04,23.776884]
[1735158198360,1.7131,199.1,199.04,33.4206489]
[1735158199990,1.7131,199.1,199.04,23.776884]
[1735158200165,9.6437649,199.09,199.01,20.0]
[1735158200367,9.6437649,199.09,199.02,23.776884]
[1735158200690,9.6437649,199.07,199.03,20.0]
[1735158201087,6.4822,199.09,198.96,9.6437649]
[1735158201088,9.6437649,199.04,198.96,9.6437649]
[1735158201270,9.6437649,199.04,198.97,0.12549]
[1735158202090,9.6437649,199.05,198.97,9.7692549]
[1735158202269,9.6437649,199.05,198.99,23.776884]
[1735158203261,9.6437649,199.05,198.98,23.776884]
[1735158204787,9.6437649,199.04,198.98,23.776884]
[1735158204964,9.6437649,199.02,198.96,23.776884]
[1735158205893,9.6437649,199.02,198.96,33.4206489]
[1735158206191,9.6437649,199.03,198.96,33.4206489]
[1735158206967,9.6437649,199.03,198.96,23.776884]
[1735158207174,9.6437649,199.03,198.9,12.5685]
[1735158207175,11.4003649,199.01,198.91,0.75371806]
[1735158207496,9.6437649,199.0,198.93,9.6437649]
[1735158208968,9.6437649,198.99,198.92,9.6437649]
[1735158209174,1.7566,199.01,198.93,33.4206489]
[1735158209372,11.4003649,199.01,198.95,9.6437649]
[1735158211986,11.4003649,199.01,198.94,9.6437649]
[1735158212181,11.4003649,199.01,198.95,23.776884]
[1735158213306,1.7566,199.01,198.96,9.6437649]
[1735158213678,1.7566,199.01,198.95,33.4206489]
[1735158214381,11.4003649,199.01,198.95,23.776884]
[1735158214688,9.6437649,199.0,198.95,23.776884]
[1735158214880,11.4003649,199.01,198.95,23.776884]
[1735158215072,1.7566,199.01,198.95,23.776884]
[1735158216176,11.4003649,199.01,198.95,23.776884]
[1735158216371,9.6437649,199.0,198.93,29.6437649]
[1735158216577,9.6437649,199.0,198.94,23.776884]
[1735158218113,11.4003649,199.01,198.94,33.4206489]
[1735158222128,11.4003649,199.01,198.93,9.6437649]
[1735158222296,9.6437649,198.98,198.92,23.776884]
[1735158223403,9.6437649,198.97,198.92,23.776884]
[1735158223612,9.6437649,198.98,198.92,23.776884]
[1735158225226,9.6437649,198.98,198.91,20.0]
[1735158225429,9.6437649,198.96,198.89,20.0]
[1735158225617,9.6437649,198.96,198.89,29.6437649]
[1735158226116,9.6437649,198.98,198.9,9.6437649]
[1735158226525,9.6437649,198.98,198.91,9.6437649]
[1735158227321,9.6437649,198.98,198.9,23.776884]
[1735158227502,9.6437649,198.98,198.91,9.6437649]
[1735158228042,9.6437649,198.99,198.92,9.6437649]
[1735158229938,9.6437649,198.98,198.91,9.6437649]
[1735158232720,9.6437649,198.99,198.91,9.6437649]
[1735158234730,9.6437649,198.98,198.91,9.6437649]
[1735158236237,9.6437649,198.98,198.9,9.6437649]
[1735158236411,9.6437649,198.96,198.89,9.6437649]
[1735158237345,9.6437649,198.94,198.87,9.6437649]
[1735158238138,9.6437649,198.93,198.86,9.6437649]
[1735158238513,9.6437649,198.94,198.87,9.6437649]
[1735158239236,9.6437649,198.94,198.84,23.776884]
[1735158239442,9.6437649,198.94,198.87,9.6437649]
[1735158239617,9.6437649,198.93,198.86,9.6437649]
[1735158239932,8.1555,198.95,198.87,9.6437649]
[1735158240135,8.1555,198.95,198.88,9.6437649]
[1735158240350,17.7992649,198.95,198.88,9.6437649]
[1735158240525,17.7992649,198.95,198.84,23.776884]
[1735158240526,17.7992649,198.95,198.87,9.6437649]
[1735158240727,9.6437649,198.94,198.87,9.6437649]
[1735158242749,11.2832649,198.89,198.81,9.6437649]
[1735158243456,9.6437649,198.88,198.8,9.6437649]
[1735158243875,1.6395,198.89,198.81,9.6437649]
[1735158244176,1.6395,198.89,198.85,9.6437649]
[1735158247976,1.6395,198.89,198.84,9.6437649]
[1735158248183,1.6395,198.89,198.83,9.6437649]
[1735158249381,11.2832649,198.89,198.82,20.0]
[1735158249566,9.6437649,198.88,198.81,9.6437649]
[1735158250186,6.6094,198.87,198.77,0.75433575]
[1735158250361,9.6437649,198.85,198.77,9.6437649]
[1735158250982,9.6437649,198.85,198.73,0.75442389]
[1735158250983,16.2531649,198.87,198.79,9.6437649]
[1735158251546,6.6094,198.87,198.81,9.6437649]
[1735158251751,6.6094,198.87,198.82,9.6437649]
[1735158252228,6.6094,198.87,198.81,9.6437649]
[1735158253249,16.2531649,198.87,198.78,23.776884]
[1735158253450,9.6437649,198.86,198.78,33.4206489]
[1735158253765,9.6437649,198.86,198.79,9.6437649]
[1735158255291,16.2531649,198.87,198.8,9.6437649]
[1735158255457,6.6094,198.87,198.8,9.6437649]
[1735158257177,16.2531649,198.87,198.8,9.6437649]
[1735158260862,16.2531649,198.87,198.78,23.776884]
[1735158261166,16.2531649,198.87,198.79,9.6437649]
[1735158262143,16.2531649,198.87,198.8,9.6437649]
[1735158263366,6.6094,198.87,198.81,23.776884]
[1735158263671,6.2239,198.92,198.86,9.6437649]
[1735158263970,1.6431,198.94,198.82,30.0]
[1735158263971,1.6431,198.94,198.87,9.6437649]
[1735158264175,1.6431,198.94,198.88,9.6437649]
[1735158264735,1.6431,198.94,198.89,33.4206489]
[1735158266659,1.6431,198.94,198.87,9.6437649]
[1735158266876,11.2868649,198.94,198.86,9.6437649]
[1735158267043,9.6437649,198.93,198.86,9.6437649]
[1735158267237,11.2868649,198.94,198.86,9.6437649]
[1735158267863,9.6437649,198.93,198.83,0.12549]
[1735158268042,9.6437649,198.93,198.86,9.6437649]
[1735158270174,11.2868649,198.94,198.87,9.6437649]
[1735158270946,1.6431,198.94,198.87,9.6437649]
[1735158271152,11.2868649,198.94,198.87,9.6437649]
[1735158271779,11.2868649,198.94,198.82,43.776884]
[1735158271959,9.6437649,198.92,198.85,9.6437649]
[1735158272360,12.5672,198.93,198.85,9.6437649]
[1735158272675,9.6437649,198.92,198.85,9.6437649]
[1735158277991,9.6437649,198.92,198.84,9.6437649]
[1735158281153,9.6437649,198.92,198.81,20.0]
[1735158281154,9.6437649,198.89,198.82,9.6437649]
[1735158281390,19.1884,198.91,198.8,20.0]
[1735158281391,11.4210649,198.88,198.81,9.6437649]
[1735158281560,9.6437649,198.87,198.8,9.6437649]
[1735158283856,11.4210649,198.88,198.8,9.6437649]
[1735158284057,11.4210649,198.88,198.81,9.6437649]
[1735158284276,11.4210649,198.88,198.8,20.0]
[1735158284590,11.4210649,198.88,198.8,29.6437649]
[1735158284883,9.6437649,198.87,198.76,20.75442347]
[1735158285102,9.6437649,198.87,198.79,9.6437649]
[1735158285268,11.4210649,198.88,198.8,9.6437649]
[1735158285462,11.4210649,198.88,198.76,20.0]
[1735158285696,11.4210649,198.88,198.8,9.6437649]
[1735158286790,9.6437649,198.87,198.8,9.6437649]
[1735158287097,9.6437649,198.83,198.73,23.776884]
[1735158287402,6.302,198.86,198.8,9.6437649]
[1735158288603,6.302,198.86,198.77,23.776884]
[1735158288905,6.302,198.86,198.8,9.6437649]
[1735158290574,6.302,198.86,198.79,9.6437649]
[1735158292910,6.302,198.86,198.78,20.0]
[1735158293076,6.302,198.86,198.79,9.6437649]
[1735158293405,15.9457649,198.86,198.79,9.6437649]
[1735158295616,6.302,198.86,198.79,9.6437649]
[1735158295816,1.6761,198.88,198.84,9.6437649]
[1735158295993,1.6761,198.88,198.83,9.6437649]
[1735158300596,1.6761,198.88,198.82,9.6437649]
[1735158305321,1.6761,198.88,198.83,9.6437649]
[1735158313727,1.6761,198.88,198.8,20.0]
[1735158314022,1.6761,198.88,198.82,9.6437649]
[1735158315125,1.6761,198.88,198.8,20.0]
[1735158315126,1.6761,198.88,198.83,9.6437649]
[1735158316836,1.6761,198.88,198.8,20.0]
[1735158317121,1.6761,198.88,198.82,9.6437649]
[1735158319102,1.6761,198.88,198.84,9.6437649]
[1735158320532,1.6761,198.88,198.86,9.6437649]
[1735158320699,6.6402,198.91,198.86,9.6437649]
[1735158323814,1.7339,198.93,198.89,9.6437649]
[1735158324327,1.7339,198.93,198.88,9.6437649]
[1735158324515,1.7339,198.93,198.83,0.75410285]
[1735158324721,11.3776649,198.93,198.86,9.6437649]
[1735158326266,1.7339,198.93,198.87,9.6437649]
[1735158327935,1.7339,198.93,198.88,9.6437649]
[1735158328328,1.7339,198.93,198.89,9.6437649]
[1735158328500,1.7178,198.98,198.92,9.6437649]
[1735158328699,1.7178,198.98,198.95,9.6437649]
[1735158329635,6.3692,199.01,198.96,9.6437649]
[1735158329930,1.7178,199.03,198.99,9.6437649]
[1735158330150,7.82043926,199.06,199.02,9.6437649]
[1735158330638,6.3692,199.07,199.01,9.6437649]
[1735158330835,1.7178,199.08,199.03,9.6437649]
[1735158331035,1.7178,199.08,198.96,0.12549]
[1735158331036,7.82043926,199.1,199.06,9.6437649]
[1735158331235,7.82043926,199.1,199.08,9.6437649]
[1735158331555,1.7178,199.13,199.03,0.12549]
[1735158331754,9.6437649,199.12,199.01,20.0]
[1735158331925,9.6437649,199.11,199.04,9.6437649]
[1735158332746,11.3615649,199.13,199.06,9.6437649]
[1735158332942,11.3615649,199.13,199.0,0.12549]
[1735158332943,1.7178,199.13,199.07,9.6437649]
[1735158333142,1.7178,199.13,199.09,9.6437649]
[1735158333441,6.3692,199.17,199.1,9.6437649]
[1735158333839,6.3692,199.17,199.11,9.6437649]
[1735158334038,11.3615649,199.18,199.06,43.902374]
[1735158334039,1.7178,199.18,199.14,9.6437649]
[1735158334255,1.7178,199.18,199.13,9.6437649]
[1735158334422,1.7178,199.18,199.15,9.6437649]
[1735158334627,16.0129649,199.22,199.15,9.6437649]
[1735158334944,6.3692,199.22,199.16,9.6437649]
[1735158335343,6.3692,199.22,199.17,9.6437649]
[1735158335655,1.7178,199.24,199.18,9.6437649]
[1735158335867,1.7178,199.24,199.2,9.6437649]
[1735158336160,11.3615649,199.24,199.17,9.6437649]
[1735158336665,1.7178,199.24,199.17,9.6437649]
[1735158336832,1.7178,199.24,199.19,9.6437649]
[1735158337034,6.3692,199.27,199.2,9.6437649]
[1735158337247,9.6437649,199.26,199.16,23.776884]
[1735158337455,9.6437649,199.24,199.17,9.6437649]
[1735158338176,16.0129649,199.27,199.19,9.6437649]
[1735158338329,16.0129649,199.27,199.2,9.6437649]
[1735158338528,6.3692,199.27,199.13,54.65539137]
[1735158338858,6.3692,199.27,199.19,9.6437649]
[1735158339028,9.6437649,199.24,199.17,9.6437649]